Cogmind - Beta 16.1 *** ADVENTURER MODE // 2026.03.23 @ 00:06:09 Player: robocop Result: Destroyed by ZT-4ZN(R) with Subdweller Machine Gun Performance ------------- Evolutions (0) 0 Regions Visited (3) 600 Robots Destroyed (39) 195 Value Destroyed (1028) 1028 Prototype IDs (0) 0 Alien Tech Used (0) 0 Bonus (0) 0 TOTAL SCORE: 1823 Bonus ------- None Cogmind --------- Core Integrity 0/250 Matter 282/300 Energy 239/250 System Corruption 0% Temperature Cool (0) Movement Treading (240) Ox1 Location -10/Subcaves Parts ------- > --- POWER (1) -------- Ion Engine > --- PROPULSION (2) --- Light Treads > --- UTILITY (2) ------ Large Storage Unit Sensor Array > --- WEAPON (2) ------- Light Cannon Grenade Launcher > --- INVENTORY (15) --- Ion Engine Ion Engine Subdweller Monowheel Small Storage Unit Medium Storage Unit Sensor Array Signal Interpreter Scrap Shield Tractor Beam Rocket Launcher Mining Laser Makeshift Hammer Peak State ------------ > --- POWER ------------ Ion Engine > --- PROPULSION ------- Light Treads > --- UTILITY ---------- Large Storage Unit Subdweller Optics > --- WEAPON ----------- Light Assault Rifle Light Cannon > --- INVENTORY -------- Ion Engine Ion Engine Small Storage Unit Medium Storage Unit Sensor Array Sensor Array Signal Interpreter Scrap Shield Tractor Beam Grenade Launcher Rocket Launcher Mining Laser Makeshift Hammer [Rating: 9] Favorites ----------- Power Ion Engine Engine Ion Engine Propulsion Light Treads Treads Light Treads Leg Aluminum Leg Utility Large Storage Unit Device Sensor Array Storage Large Storage Unit Weapon Light Assault Rifle Ballistic Gun Light Assault Rifle Ballistic Cannon Light Cannon Launcher Grenade Launcher Special Weapon Mining Laser Build | -11 -10 -10 -10 ------- Run | Yrd Mat Min Sub Slots Evolved . | . . . . Power . | . . . . Propulsion . | . . . . Utility . | . . . . Weapon . | . . . . Parts Attached 13 | . 7 3 3 Power 2 | . 1 1 . Engine 2 | . 1 1 . Core . | . . . . Reactor . | . . . . Propulsion 3 | . 2 1 . Treads 3 | . 2 1 . Leg . | . . . . Wheel . | . . . . Hover . | . . . . Flight . | . . . . Utility 3 | . 1 . 2 Device 2 | . . . 2 Storage 1 | . 1 . . Processor . | . . . . Hackware . | . . . . Protection . | . . . . Artifact . | . . . . Weapon 5 | . 3 1 1 Energy Gun . | . . . . Energy Cannon . | . . . . Ballistic Gun 2 | . 1 1 . Ballistic Cannon 1 | . 1 . . Launcher 1 | . . . 1 Special Weapon 1 | . 1 . . Impact Weapon . | . . . . Slashing Weapon . | . . . . Piercing Weapon . | . . . . Special Melee Weapon . | . . . . Unidentified Prototypes . | . . . . Parts Lost 6 | . 1 3 2 Power 1 | . . 1 . Propulsion 2 | . . 1 1 Utility . | . . . . Weapon 3 | . 1 1 1 Highest Loss Streak 1 | . 1 1 1 To Critical Strikes . | . . . . Average Backups 11 | 6 9 13 12 Power 2 | 1 1 2 2 Propulsion . | 4 . . . Utility 5 | . 4 6 6 Weapon 3 | 1 2 3 4 Tool/Special . | . . . . Unused Backups 18 | . 6 1 11 Power 4 | . 1 1 2 Propulsion 5 | . 4 . 1 Utility 6 | . . . 6 Weapon 3 | . 1 . 2 Tool/Special . | . . . . Average Slot Usage (%) 83 | . 84 82 84 Engine 13 | . 14 13 14 Treads 22 | . 27 26 16 Device 4 | . . . 11 Storage 14 | . 14 14 14 Ballistic Gun 16 | . 23 14 13 Ballistic Cannon 11 | . 4 14 14 Peak Build Rating 9 | 6 7 8 9 Average Rating 7 | 6 6 7 7 On Entrance 6 | 6 6 7 7 Avg Prop Armor Cover (%) . | . . . . Naked Turns . | . . . . Heaviest Build 31 | 10 30 30 31 Greatest Support 40 | 20 40 40 40 Greatest Overweight (x) 1 | . . 1 1 Average Overweight (x) . | . . . . Largest Inventory Capacity 15 | 8 15 15 15 Average Capacity 14 | 8 12 15 15 Most Carried 15 | 6 13 14 15 Average Carried 12 | 6 9 13 13 Final Capacity 15 | 8 15 15 15 Final Carried 13 | 6 12 12 13 Class Distribution -------------------- 100% | Mutant Dominant Class ---------------- Mutant | -10/Materials Mutant | -10/Mines Mutant | -10/Subcaves Resources | -11 -10 -10 -10 ----------- Run | Yrd Mat Min Sub Matter Collected 814 | 200 294 206 114 Remotely . | . . . . Salvage Created 1185 | . 580 311 294 Parts 75 | . 37 18 20 Haulers Intercepted 1 | . 1 . . Recyclers Shooed 1 | . 1 . . Parts Field Recycled . | . . . . Retrieved Matter . | . . . . Parts Self-Destructed 3 | . . . 3 Prevented . | . . . . Parts Restored . | . . . . Kills | -11 -10 -10 -10 ------- Run | Yrd Mat Min Sub Combat Hostiles Destroyed 36 | . 18 11 7 Guns 22 | . 14 5 3 Cannons 14 | . 4 6 4 Classes Destroyed 6 | . 4 . 2 Hauler 1 | . 1 . . Recycler 2 | . 1 1 . Swarmer 14 | . 9 5 . Grunt 15 | . 9 6 . Sentry 1 | . . . 1 Subdweller 6 | . . . 6 Best Kill Streak 5 | . 5 3 2 Combat Bots Only 5 | . 5 3 2 Max Kills in Single Turn 1 | . 1 1 1 Gunslinging . | . . . . Exploded . | . . . . Melee . | . . . . Uniques/NPCs Destroyed . | . . . . Combat | -11 -10 -10 -10 -------- Run | Yrd Mat Min Sub Hostile Shots Fired 148 | . 77 50 21 Missed 35 | . 17 12 6 Hits 113 | . 60 38 15 Projectile 113 | . 60 38 15 Damage Taken 1110 | . 510 357 243 Core 258 | . 73 76 109 Absorbed by Shields . | . . . . Ignored by Resistances 333 | . 160 105 68 Core Remaining (%) 100 | 100 . . . Volleys Fired 112 | . 57 33 22 Largest 2 | . 2 2 2 Hottest 100 | . 100 50 50 Shots Fired 219 | . 112 66 41 Gun 146 | . 94 33 19 Cannon 72 | . 17 33 22 Launcher . | . . . . Special 1 | . 1 . . Kinetic 218 | . 111 66 41 Thermal 1 | . 1 . . Explosive . | . . . . Electromagnetic . | . . . . Robot Hit Streak 34 | . 23 23 34 Robot Miss Streak 4 | . 1 4 . Penetration Max . | . . . . Secondary Targets 3 | . 3 . . Max Gunslinging Chain 1 | . 1 . . Shots Hit Robots 166 | . 87 45 34 Core Hits 70 | . 35 20 15 Critical Kills 3 | . 2 . 1 Critical Parts Destroyed . | . . . . Critical Strikes 8 | . 2 4 2 Destroy 3 | . 2 . 1 Blast 5 | . . 4 1 Melee Attacks . | . . . . Impact . | . . . . Slashing . | . . . . Piercing . | . . . . Sneak Attacks . | . . . . Combat Hostiles . | . . . . Follow-up Attacks . | . . . . Damage Inflicted 1875 | . 919 552 404 Guns 1068 | . 745 200 123 Cannons 807 | . 174 352 281 Explosions . | . . . . Melee . | . . . . Ramming . | . . . . Kinetic 1875 | . 919 552 404 Thermal . | . . . . Explosive . | . . . . Electromagnetic . | . . . . Impact . | . . . . Slashing . | . . . . Piercing . | . . . . Highest Corruption . | . . . . Average Corruption . | . . . . Corruption Purged . | . . . . Corruption Blocked . | . . . . Overload Shots . | . . . . Overflow Damage . | . . . . Projectiles . | . . . . Explosions . | . . . . Melee . | . . . . Knockbacks 12 | . 1 7 4 Impact . | . . . . Kinetic 12 | . 1 7 4 Secondary . | . . . . Self-Inflicted Damage 21 | . 21 . . Shots 1 | . 1 . . Rammed . | . . . . Targets Rammed . | . . . . Kicked . | . . . . Crushed . | . . . . Highest Temperature 59 | . 31 59 . Average Temperature 15 | . 9 20 . Received Heat Transfer 507 | . 243 216 48 Siege Activations . | . . . . Martial Activations . | . . . . Shielding Activations . | . . . . Robots Disrupted . | . . . . Combat Hostiles . | . . . . Robots Corrupted . | . . . . Combat Hostiles . | . . . . Parts Fried . | . . . . Impact Corruptions . | . . . . Robots Melted . | . . . . Combat Hostiles . | . . . . Parts Melted . | . . . . Heat Transferred . | . . . . Parts Sabotaged . | . . . . Parts Stolen . | . . . . Parts Stripped . | . . . . Power Chain Reactions . | . . . . Alert | -11 -10 -10 -10 ------- Run | Yrd Mat Min Sub Maximum Alert Level . | . . . . Low Security (%) 100 | 100 100 100 . Level 1 . | . . . . Level 2 . | . . . . Level 3 . | . . . . Level 4 . | . . . . Level 5 . | . . . . High Security . | . . . . Max Security . | . . . . Peak Influence 188 | . 172 188 . Initial 40 | . . 40 . Average 50 | . 54 47 . Influence Increases 911 | . 503 388 20 Destroy 0b10 Robot/C 600 | . 360 220 20 Destroy 0b10 Robot/NC 15 | . 10 5 . Destroy Leader 102 | . 62 40 . Successful Hack 22 | . 22 . . Disable Machine 36 | . 18 18 . Destroy Structure 1 | . 1 . . Lose Combat Pursuer 135 | . 30 105 . Influence Decreases 911 | . 381 462 68 Entered New Map 111 | . . 82 29 Time Decay 780 | . 371 370 39 Lost Part 20 | . 10 10 . Squads Dispatched 3 | . 2 1 . Investigation 3 | . 2 1 . Extermination . | . . . . Reinforcement . | . . . . Assault . | . . . . Garrison . | . . . . Intercept . | . . . . Searches Triggered . | . . . . Construction Impeded . | . . . . Haulers Reinforced . | . . . . Active Scanning Responses . | . . . . Cargo Convoy Interrupts . | . . . . Stealth | -11 -10 -10 -10 --------- Run | Yrd Mat Min Sub Distress Signals 4 | . 4 . . Communications Jammed . | . . . . Distress Signals . | . . . . Times Spotted 48 | . 24 15 9 Peak Tracking Total 5 | . 5 3 2 Tactical Retreats 8 | . 1 7 . Traps | -11 -10 -10 -10 ------- Run | Yrd Mat Min Sub Traps Triggered . | . . . . Indirectly . | . . . . Trap Hack Attempts . | . . . . Triggered . | . . . . Disarmed . | . . . . Reprogrammed . | . . . . Reused . | . . . . Traps Extracted . | . . . . Installed . | . . . . Triggered . | . . . . Machines | -11 -10 -10 -10 ---------- Run | Yrd Mat Min Sub Machines Disabled 4 | . 2 2 . Max in Single Turn 1 | . 1 1 . Machines Repaired . | . . . . Machines Dismantled . | . . . . Machines Sabotaged . | . . . . Overloaded Fab Kills . | . . . . Hacking | -11 -10 -10 -10 --------- Run | Yrd Mat Min Sub Machines Accessed 8 | . 6 1 1 Terminals 6 | . 5 1 . Fabricators . | . . . . Repair Stations . | . . . . Recycling Units 1 | . 1 . . Scanalyzers . | . . . . Garrison Access . | . . . . Total Hacks 23 | . 15 4 4 Successful 16 | . 11 1 4 Failed 7 | . 4 3 . Catastrophic . | . . . . Database Lockouts . | . . . . Manual 16 | . 15 . 1 Terminals 17 | . 13 4 . Fabricators . | . . . . Repair Stations . | . . . . Recycling Units 2 | . 2 . . Scanalyzers . | . . . . Garrison Access . | . . . . Terminal Hacks 11 | . 6 1 4 Record 4 | . . . 4 Part Schematic 3 | . 3 . . Maintenance Status 1 | . 1 . . Hauler Manifests 1 | . 1 . . Registered Components 1 | . 1 . . Zone Layout 1 | . . 1 . Fabricator Hacks . | . . . . Repair Station Hacks . | . . . . Recycling Unit Hacks . | . . . . Scanalyzer . | . . . . Garrison Access Hacks . | . . . . Unauthorized Hacks 5 | . 5 . . Terminals 4 | . 4 . . Botnet 4 | . 4 . . Fabricators . | . . . . Repair Stations . | . . . . Recycling Units 1 | . 1 . . Recyclers 1 | . 1 . . Scanalyzers . | . . . . Garrison Access . | . . . . Data Cores Recovered . | . . . . Used . | . . . . Hacking Detections 6 | . 5 1 . Full Trace Events 3 | . 2 1 . Feedback Events . | . . . . Feedback Blocked . | . . . . Robot Schematics Acquired . | . . . . Robots Built . | . . . . Authchips . | . . . . Time . | . . . . Total Robot Build Rating . | . . . . Part Schematics Acquired 3 | . 3 . . Parts Built . | . . . . Authchips . | . . . . Time . | . . . . Total Part Build Rating . | . . . . Part Studies Acquired . | . . . . Parts Repaired . | . . . . Time . | . . . . Parts Recycled . | . . . . Recycled Matter . | . . . . Retrieved Matter . | . . . . Retrieved Components . | . . . . Parts Scanalyzed . | . . . . Part Schematics Acquired . | . . . . Parts Damaged . | . . . . Bothacking | -11 -10 -10 -10 ------------ Run | Yrd Mat Min Sub Used RIF Installer . | . . . . Robots Hacked . | . . . . Non-combat . | . . . . Combat . | . . . . Robot Hacks Applied . | . . . . Relay Couplers Released . | . . . . Fabnet Peak Effective % . | . . . . Robots Rewired . | . . . . Allies Hacked . | . . . . Hacks Repelled . | . . . . Allies | -11 -10 -10 -10 -------- Run | Yrd Mat Min Sub Total Allies . | . . . . Largest Group . | . . . . Highest-Rated Group . | . . . . Highest-Rated Ally . | . . . . Total Orders . | . . . . Ally Attacks . | . . . . Total Damage . | . . . . Kills . | . . . . Allies Corrupted . | . . . . Allies Melted . | . . . . Intel | -11 -10 -10 -10 ------- Run | Yrd Mat Min Sub Active Infowar (turns) 1250 | . . . 1250 Optics 210 | . . . 210 Sensors 1040 | . . . 1040 Robot Analysis Total . | . . . . Derelict Logs Recovered 2 | . . 2 . Drone Launches . | . . . . Drone Recoveries . | . . . . Exploration | -11 -10 -10 -10 ------------- Run | Yrd Mat Min Sub Turns Passed 3842 | 3 1027 1264 1548 Spaces Moved 1820 | 3 512 634 671 Core . | . . . . Treads 1805 | . 500 634 671 Legs 15 | 3 12 . . Wheels . | . . . . Hover . | . . . . Flight . | . . . . Fastest Speed 120 | 120 120 160 160 Average Speed 183 | 120 159 165 220 Slowest Speed 240 | 120 160 240 240 Overloaded Moves . | . . . . Propulsion Burnouts . | . . . . Robots Hopped . | . . . . Potential Cave-ins . | . . . . Cave-ins Triggered . | . . . . Exploration Rate (%) 49 | 2 66 95 33 Regions Visited 3 Branch Regions 2 Pre-discovered Areas 2 | . . 2 . Known Exits Taken . | . . . . Unknown Exits Taken 3 | 1 1 1 . Scrap Searched 1 | . . 1 . Spaces Dug . | . . . . Terrain Destroyed . | . . . . Melee . | . . . . Projectile . | . . . . AOE . | . . . . Terrain Rammed . | . . . . Walls Destroyed . | . . . . Machines Disabled . | . . . . Actions | -11 -10 -10 -10 --------- Run | Yrd Mat Min Sub Total 2116 | 2 622 791 701 Wait 146 | . 28 117 1 Move 1817 | 2 511 633 671 Hop . | . . . . Pick Up 19 | . 12 4 3 Fast Attach . | . . . . Attach 9 | . 3 3 3 Detach 2 | . 2 . . Swap 4 | . 4 . . Drop 7 | . 5 1 1 Fire 112 | . 57 33 22 Melee . | . . . . Ram . | . . . . Kick . | . . . . Crush . | . . . . Escape Stasis . | . . . . Rewire . | . . . . Trap . | . . . . Miscellaneous . | . . . . Route ------- -11/Scrapyard -10/Materials (discovered 2 exits: [*Mat] / *Min) -10/Mines (discovered 4 exits: [*Mat x2] / [*Exi] / *Sub) -10/Subcaves History --------- Turn | Location | Event 1 | -11/Scrapyard | Discovered new exit (range 0) 4 | -11/Scrapyard | Entered Materials 240 | -10/Materials | Discovered new exit (range 16) 302 | -10/Materials | Build established: Mutant 807 | -10/Materials | Discovered new exit (range 12) 1031 | -10/Materials | Entered Mines 1057 | -10/Mines | Found a hidden stash of uninstalled traps 1094 | -10/Mines | Learned location of Zion (-6) 1112 | -10/Mines | YI-UF0 nonchalantly dropped a Grenade Launcher on the ground 1142 | -10/Mines | Learned location of Recycling (-7) 1149 | -10/Mines | Received a Rocket Launcher from a helpful Derelict 1374 | -10/Mines | A weapon hastily lodged in a ceiling crevice suddenly fell to the ground 1442 | -10/Mines | Deemed a non-threat by the Exiles lab entrance 1442 | -10/Mines | Discovered new exit (range 5) 1496 | -10/Mines | Discovered new exit (range 15) 1683 | -10/Mines | Discovered new exit (range 6) 1732 | -10/Mines | Core integrity fell below 50% 1914 | -10/Mines | Discovered new exit (range 11) 2295 | -10/Mines | Entered Subcaves 2401 | -10/Subcaves | Visited Clippyterm 2406 | -10/Subcaves | Learned Research machine intel 2406 | -10/Subcaves | Learned Factory stockpile data 2670 | -10/Subcaves | Core integrity fell below 20% 3843 | -10/Subcaves | Destroyed by ZT-4ZN(R) with Subdweller Machine Gun Last Messages --------------- 02736_ 50-DMQ(R) destroyed. 02751_ Acquired Sub. Monowheel. 02752_ Acquired 15 matter. 02801_ Sub. Optics shoots sparks and powers down. 02802_ Dropped Broken Sub. Optics. 02829_ Subatomizers dissect the Broken Sub. Optics. 02852_ Acquired 10 matter. 02969_ Y-45 Defender destroyed. 02978_ Hvy. Assault Rifle fries itself beyond repair. 02982_ Acquired 5 matter. 02983_ Heat Sink fries itself beyond repair. 03256_ GU-285(R) destroyed. 03268_ Acquired 10 matter. 03497_ R2-9PZ(u) deconstructs Twisted Machinery. 03837_ Lgt. Assault Rifle destroyed. 03838_ Q1-7VR(R) knocked back. Map ----- +----------------------------------------------------+ | ??????????????????????????????????????????? | | ??????????????????????????????????????????? | | ??????????????????????????????????????????? | | ??????????????????????????????????????????? | | ??????????????????????????????????????????? | | ??????????????????????????????????????????? | | ??????????????????????????????????????????? | | ??????????????????????????????????????????? | | ??????????????????????????????????????????? | | ??????????????????????????????????????????? | | ??????????????????????????????????????????? | | ??????????????????????????????????????????? | | ??????????????????????????????????????????? | | ??????????????????????????????????????????? | | ??????????????????????????????????????????? | | ??????????????????????????????????????????? | | ??????????????????????????????????????????? | | ???????????????????????#??????????????????? | | ?????????????????????? ##?????????????????? | | ?????????????????????? ??????????????????? | | ????????????????????? #??????????????????? | | ????????????????????? #??????????????????? | | ???????????????????? R #??????????????????? | | ???????????????##### R #??????????????????? | | ??????????????## #??????????????????? | | ??????????????# @## #??????????????????? | | ??????????????# ##???#??????????????????? | | ??????????????## #???????????????????????? | | ???????????????# ##??????????????????????? | | ???????????????## ##?????????????????????? | | ????????????????## ##????????????????????? | | ?????????????????# #????????????????????? | | ????????????????## ####?????????????????? | | ???????????????## ##????????????????? | | ???????????????# #????????????????? | | ???????????????# ## #????????????????? | | ???????????????# #### #????????????????? | | ???????????????# ##?## #????????????????? | | ???????????????##???# ##????????????????? | | ????????????????????## #?????????????????? | | ????????????????###### #?????????????????? | | ????????????????# ## ##????????????????? | | ????????????????# # #????????????????? | | ????????????????### ##????????????????? | | ??????????????????# #?????????????????? | | ?????????????????## #?????????????????? | | ????????????????## ##????????????????? | | ??????????????### ###??????????????? | | ??????????????# " ### #??????????????? | | ??????????????#"&"" ?## ##?????????????? | +----------------------------------------------------+ Best States ------------- Heat Dissipation 25 Energy Generation 10 Energy Capacity 250 Matter Stores 300 Matter Capacity 300 Sight Range 21 Robot Scan Range 14 Terrain Scan Density 10 Resistance: KI 20 Resistance: TH 20 Resistance: EX 20 Resistance: EM 20 Resistance: I 20 Resistance: S 20 Resistance: P 20 Evasion (%) 50 Recoil Reduction 2 Offensive Hacking 10 Item Schematics ----------------- Lrg. Storage Unit | -10/Materials | Hacked Hover Unit | -10/Materials | Hacked Utility Shielding | -10/Materials | Hacked Robot Schematics ------------------ None Fabricated ------------ Nothing Repaired ---------- Nothing Studied --------- None Alien Tech Used ----------------- None Achievements -------------- None Challenges ------------ None Game ------ Seed MappingGuidanceExtractor Manual? 0 Play Time 00:21:29 Cumulative 27.1 hours Start 2026.03.22 @ 23:40:49 End 2026.03.23 @ 00:06:09 Sessions 1 Manual Loads 0 Difficulty Adventurer Special Mode None Game No. 40 Rogue 33 Adventurer 7 Explorer 0 Win Type - Total 0 Types 0/0/0/0/0/0/0/0/0/0 Lore% 18 Gallery% 28 Achievement% 20 Wizard Run 0 Options --------- Layout 1 ASCII 0 Keyboard 0 Movement Numpad Keybinds 0 Fullscreen 2 Font 32/SmallcapsGlow Map View 50x35 Zoom Use 0% Tactical HUD 1 Map Filters NONE Filters NONE Steam 1 RUN: 162ee1c8-46ac-4319-b359-927ee06cb4fd